[Event "Masters Tournament (MTO)"]
[Site "Biel, Switzerland"]
[Date "2026.07.23"]
[Round "10.15"]
[White "Nguyen, Thi Mai Hung"]
[Black "Ling, Chenxuan"]
[Result "1-0"]
[TimeControl "100+30+30sec/move"]
[WhiteTitle "-"]
[BlackTitle "-"]
[WhiteFideId "12401676"]
[BlackFideId "30983118"]
[WhiteElo "2260"]
[BlackElo "2166"]

1. d4 {[%clk 01:40:48]} {[%emt 00:00:11]} Nf6 {[%clk 01:40:46]} {[%emt
00:00:15]} 2. Nf3 {[%clk 01:40:26]} {[%emt 00:00:52]} d5 {[%clk 01:41:06]}
{[%emt 00:00:10]} 3. c4 {[%clk 01:40:39]} {[%emt 00:00:18]} e6 {[%clk
01:41:30]} {[%emt 00:00:06]} 4. Nc3 {[%clk 01:39:42]} {[%emt 00:01:27]} Bb4
{[%clk 01:41:24]} {[%emt 00:00:36]} 5. e3 {[%clk 01:39:45]} {[%emt 00:00:27]}
O-O {[%clk 01:41:15]} {[%emt 00:00:38]} 6. Bd3 {[%clk 01:34:35]} {[%emt
00:05:41]} c5 {[%clk 01:39:14]} {[%emt 00:02:31]} 7. O-O {[%clk 01:34:32]}
{[%emt 00:00:32]} Nc6 {[%clk 01:37:07]} {[%emt 00:02:38]} 8. a3 {[%clk
01:31:41]} {[%emt 00:03:21]} Bxc3 {[%clk 01:35:44]} {[%emt 00:01:53]} 9. bxc3
{[%clk 01:32:09]} {[%emt 00:00:01]} dxc4 {[%clk 01:35:58]} {[%emt 00:00:17]} 10.
Bxc4 {[%clk 01:32:29]} {[%emt 00:00:10]} Qc7 {[%clk 01:36:17]} {[%emt
00:00:10]} 11. Qe2 {[%clk 01:21:45]} {[%emt 00:11:14]} e5 {[%clk 01:32:39]}
{[%emt 00:04:08]} 12. h3 {[%clk 01:19:40]} {[%emt 00:02:35]} h6 {[%clk
01:26:19]} {[%emt 00:06:51]} 13. Ba2 {[%clk 01:12:26]} {[%emt 00:07:44]} Rd8
{[%clk 01:22:51]} {[%emt 00:03:57]} 14. Bb2 {[%clk 01:10:53]} {[%emt 00:02:03]}
Qe7 {[%clk 01:14:25]} {[%emt 00:08:56]} 15. Rfd1 {[%clk 00:55:46]} {[%emt
00:15:37]} cxd4 {[%clk 01:10:56]} {[%emt 00:04:00]} 16. cxd4 {[%clk 00:53:50]}
{[%emt 00:02:25]} e4 {[%clk 01:09:20]} {[%emt 00:02:06]} 17. Ne5 {[%clk
00:53:11]} {[%emt 00:01:09]} Be6 {[%clk 01:07:54]} {[%emt 00:01:56]} 18. Nxc6
{[%clk 00:48:48]} {[%emt 00:04:53]} bxc6 {[%clk 01:08:16]} {[%emt 00:00:08]} 19.
Rdc1 {[%clk 00:48:05]} {[%emt 00:01:13]} Bxa2 {[%clk 01:04:32]} {[%emt
00:04:14]} 20. Rxa2 {[%clk 00:48:33]} {[%emt 00:00:02]} Qe6 {[%clk 01:04:54]}
{[%emt 00:00:07]} 21. Bc3 {[%clk 00:43:24]} {[%emt 00:05:40]} Rd5 {[%clk
01:03:02]} {[%emt 00:02:22]} 22. Bb4 {[%clk 00:43:25]} {[%emt 00:00:29]} Rg5
{[%clk 01:02:12]} {[%emt 00:01:21]} 23. Kh1 {[%clk 00:41:54]} {[%emt 00:02:00]}
Rh5 {[%clk 01:00:07]} {[%emt 00:02:35]} 24. Rac2 {[%clk 00:41:14]} {[%emt
00:01:10]} c5 {[%clk 00:52:03]} {[%emt 00:08:34]} 25. Rxc5 {[%clk 00:34:17]}
{[%emt 00:07:27]} Rh4 {[%clk 00:44:27]} {[%emt 00:08:06]} 26. Kg1 {[%clk
00:33:01]} {[%emt 00:01:46]} Nd5 {[%clk 00:43:09]} {[%emt 00:01:48]} 27. Qc4
{[%clk 00:21:44]} {[%emt 00:11:47]} Rh5 {[%clk 00:42:21]} {[%emt 00:01:18]} 28.
Rc8+ {[%clk 00:21:41]} {[%emt 00:00:33]} Rxc8 {[%clk 00:42:42]} {[%emt
00:00:09]} 29. Qxc8+ {[%clk 00:22:07]} {[%emt 00:00:04]} Qxc8 {[%clk 00:43:01]}
{[%emt 00:00:11]} 30. Rxc8+ {[%clk 00:22:34]} {[%emt 00:00:03]} Kh7 {[%clk
00:43:24]} {[%emt 00:00:07]} 31. Bc5 {[%clk 00:20:49]} {[%emt 00:02:15]} a6
{[%clk 00:41:44]} {[%emt 00:02:10]} 32. Rc6 {[%clk 00:20:34]} {[%emt 00:00:45]}
f5 {[%clk 00:42:05]} {[%emt 00:00:09]} 33. Rxa6 {[%clk 00:19:30]} {[%emt
00:01:35]} f4 {[%clk 00:42:26]} {[%emt 00:00:08]} 34. Re6 {[%emt 00:03:07]}
fxe3 {[%clk 00:41:43]} 35. fxe3 {[%clk 00:18:30]} {[%emt 00:00:07]} Nxe3 {[%clk
00:42:03]} {[%emt 00:00:09]} 36. Rxe4 {[%clk 00:18:56]} {[%emt 00:00:04]} Nd5
{[%clk 00:42:20]} {[%emt 00:00:13]} 37. Re5 {[%clk 00:18:54]} {[%emt 00:00:32]}
Rxe5 {[%clk 00:42:42]} {[%emt 00:00:08]} 38. dxe5 {[%clk 00:19:21]} {[%emt
00:00:03]} Kg6 {[%clk 00:43:06]} {[%emt 00:00:06]} 39. e6 {[%clk 00:19:15]}
{[%emt 00:00:36]} 1-0

[Event "Masters Tournament (MTO)"]
[Site "Biel, Switzerland"]
[Date "2026.07.23"]
[Round "10.16"]
[White "Joly, Julien"]
[Black "Dai, Wenzhi"]
[Result "1/2-1/2"]
[TimeControl "100+30+30sec/move"]
[WhiteTitle "-"]
[BlackTitle "-"]
[WhiteFideId "26082284"]
[BlackFideId "8608369"]
[WhiteElo "2257"]
[BlackElo "2126"]

1. e4 {[%clk 01:40:53]} {[%emt 00:00:04]} e5 {[%clk 01:40:53]} {[%emt
00:00:08]} 2. Nf3 {[%clk 01:40:47]} {[%emt 00:00:36]} Nf6 {[%clk 01:41:17]}
{[%emt 00:00:07]} 3. d4 {[%clk 01:40:30]} {[%emt 00:00:47]} Nxe4 {[%clk
01:41:42]} {[%emt 00:00:06]} 4. Bd3 {[%clk 01:40:05]} {[%emt 00:00:53]} d5
{[%clk 01:42:06]} {[%emt 00:00:06]} 5. Nxe5 {[%clk 01:39:37]} {[%emt 00:00:58]}
Nd7 {[%clk 01:42:32]} {[%emt 00:00:05]} 6. Nc3 {[%clk 01:39:48]} {[%emt
00:00:19]} Nxc3 {[%clk 01:40:12]} {[%emt 00:02:51]} 7. bxc3 {[%clk 01:39:53]}
{[%emt 00:00:24]} Nxe5 {[%clk 01:40:14]} {[%emt 00:00:29]} 8. dxe5 {[%clk
01:40:20]} {[%emt 00:00:01]} Bc5 {[%clk 01:39:04]} {[%emt 00:01:40]} 9. O-O
{[%clk 01:40:34]} {[%emt 00:00:16]} c6 {[%clk 01:30:01]} {[%emt 00:09:34]} 10.
Rb1 {[%clk 01:36:43]} {[%emt 00:04:20]} Qe7 {[%clk 01:24:32]} {[%emt 00:05:59]}
11. Qh5 {[%clk 01:33:14]} {[%emt 00:03:59]} h6 {[%clk 01:21:31]} {[%emt
00:03:32]} 12. a4 {[%clk 01:11:52]} {[%emt 00:21:52]} Be6 {[%clk 01:18:02]}
{[%emt 00:03:58]} 13. a5 {[%clk 01:10:39]} {[%emt 00:01:44]} O-O-O {[%clk
01:14:19]} {[%emt 00:04:13]} 14. Qe2 {[%clk 01:06:56]} {[%emt 00:04:13]} Qh4
{[%clk 00:51:36]} {[%emt 00:23:13]} 15. Be3 {[%clk 00:35:39]} {[%emt 00:31:46]}
Bxe3 {[%clk 00:51:37]} {[%emt 00:00:30]} 16. Qxe3 {[%clk 00:35:50]} {[%emt
00:00:18]} d4 {[%clk 00:51:23]} {[%emt 00:00:45]} 17. cxd4 {[%clk 00:33:47]}
{[%emt 00:02:33]} Qxd4 {[%clk 00:51:45]} {[%emt 00:00:08]} 18. Qf3 {[%clk
00:29:41]} {[%emt 00:04:36]} Bd5 {[%clk 00:48:16]} {[%emt 00:03:59]} 19. Bf5+
{[%clk 00:27:23]} {[%emt 00:02:48]} Kb8 {[%clk 00:48:16]} {[%emt 00:00:29]} 20.
Qg3 {[%clk 00:27:35]} {[%emt 00:00:19]} Ka8 {[%emt 00:06:29]} 21. Rfd1 {[%clk
00:22:41]} Qc5 {[%clk 00:45:10]} {[%emt 00:03:01]} 22. a6 {[%clk 00:10:36]}
{[%emt 00:12:36]} b5 {[%clk 00:45:15]} {[%emt 00:00:23]} 23. Bd3 {[%clk
00:04:10]} {[%emt 00:06:57]} g5 {[%clk 00:40:10]} {[%emt 00:05:35]} 24. Re1
{[%clk 00:01:42]} {[%emt 00:02:58]} Rb8 {[%clk 00:34:18]} {[%emt 00:06:21]} 25.
Qg4 {[%clk 00:01:08]} {[%emt 00:01:04]} h5 {[%clk 00:32:10]} {[%emt 00:02:38]}
26. Qf5 {[%clk 00:01:21]} {[%emt 00:00:17]} g4 {[%clk 00:31:03]} {[%emt
00:01:38]} 27. Re3 {[%clk 00:00:59]} {[%emt 00:00:52]} Rb6 {[%clk 00:26:29]}
{[%emt 00:05:04]} 28. e6 {[%clk 00:00:37]} {[%emt 00:00:52]} fxe6 {[%clk
00:25:04]} {[%emt 00:01:55]} 29. Rxe6 {[%clk 00:01:06]} h4 {[%clk 00:21:05]}
{[%emt 00:04:29]} 30. Rbe1 {[%clk 00:00:33]} {[%emt 00:01:03]} Rbb8 {[%clk
00:20:09]} {[%emt 00:01:25]} 31. Qe5 {[%clk 00:00:32]} {[%emt 00:00:32]} Rhf8
{[%clk 00:19:24]} {[%emt 00:01:15]} 32. Re3 {[%clk 00:00:34]} {[%emt 00:00:28]}
Qb6 {[%clk 00:12:10]} {[%emt 00:07:44]} 33. Rg6 {[%clk 00:01:03]} h3 {[%clk
00:10:20]} {[%emt 00:02:20]} 34. Rxg4 {[%clk 00:00:34]} {[%emt 00:00:59]} hxg2
{[%clk 00:10:00]} {[%emt 00:00:49]} 35. Be4 {[%clk 00:00:55]} {[%emt 00:00:10]}
Bxe4 {[%clk 00:04:27]} {[%emt 00:06:03]} 36. Qxe4 {[%clk 00:01:23]} {[%emt
00:00:02]} Qxa6 {[%clk 00:04:46]} {[%emt 00:00:11]} 37. Kxg2 {[%clk 00:01:45]}
{[%emt 00:00:08]} 1/2-1/2

[Event "Masters Tournament (MTO)"]
[Site "Biel, Switzerland"]
[Date "2026.07.23"]
[Round "10.17"]
[White "Dauth, Benjamin"]
[Black "Coban, Ege"]
[Result "1-0"]
[TimeControl "100+30+30sec/move"]
[WhiteTitle "-"]
[BlackTitle "-"]
[WhiteFideId "4688104"]
[BlackFideId "26320304"]
[WhiteElo "2247"]
[BlackElo "1986"]

1. e4 {[%clk 01:40:56]} c5 {[%clk 01:40:49]} {[%emt 00:00:12]} 2. Nf3 {[%clk
01:41:21]} {[%emt 00:00:05]} g6 {[%clk 01:41:12]} {[%emt 00:00:07]} 3. d4
{[%clk 01:41:45]} {[%emt 00:00:06]} cxd4 {[%clk 01:41:38]} {[%emt 00:00:05]} 4.
Nxd4 {[%clk 01:42:10]} {[%emt 00:00:04]} Nc6 {[%clk 01:42:04]} {[%emt
00:00:05]} 5. c4 {[%clk 01:42:28]} {[%emt 00:00:11]} Nf6 {[%clk 01:42:16]}
{[%emt 00:00:19]} 6. Nc3 {[%clk 01:42:42]} {[%emt 00:00:16]} d6 {[%clk
01:42:42]} {[%emt 00:00:05]} 7. Be2 {[%clk 01:42:27]} {[%emt 00:00:44]} Bg7
{[%clk 01:40:59]} {[%emt 00:02:13]} 8. O-O {[%clk 01:42:43]} {[%emt 00:00:14]}
O-O {[%clk 01:38:41]} {[%emt 00:02:47]} 9. Be3 {[%clk 01:38:01]} {[%emt
00:05:13]} Bd7 {[%clk 01:38:00]} {[%emt 00:01:11]} 10. h3 {[%clk 01:37:23]}
{[%emt 00:01:07]} Nxd4 {[%clk 01:35:05]} {[%emt 00:03:24]} 11. Bxd4 {[%clk
01:37:26]} {[%emt 00:00:28]} a5 {[%clk 01:35:23]} {[%emt 00:00:13]} 12. b3
{[%clk 01:37:21]} {[%emt 00:00:36]} Bc6 {[%clk 01:35:34]} {[%emt 00:00:19]} 13.
f3 {[%clk 01:36:30]} {[%emt 00:01:20]} Nd7 {[%clk 01:35:10]} {[%emt 00:00:54]}
14. Kh1 {[%clk 01:35:32]} {[%emt 00:01:27]} Nc5 {[%clk 01:34:50]} {[%emt
00:00:50]} 15. Qd2 {[%clk 01:35:39]} {[%emt 00:00:24]} b6 {[%clk 01:32:37]}
{[%emt 00:02:44]} 16. Rad1 {[%clk 01:34:05]} {[%emt 00:02:03]} Rc8 {[%clk
01:32:00]} {[%emt 00:01:06]} 17. Bxg7 {[%clk 01:33:42]} {[%emt 00:00:53]} Kxg7
{[%clk 01:32:21]} {[%emt 00:00:10]} 18. Qe3 {[%clk 01:34:05]} {[%emt 00:00:07]}
e5 {[%clk 01:10:40]} {[%emt 00:22:12]} 19. Rd2 {[%clk 01:31:55]} {[%emt
00:02:39]} Qe7 {[%clk 01:07:34]} {[%emt 00:03:36]} 20. Rfd1 {[%clk 01:31:49]}
{[%emt 00:00:36]} Rcd8 {[%emt 00:02:55]} 21. Nd5 {[%clk 01:29:50]} Bxd5 {[%clk
01:07:48]} {[%emt 00:00:20]} 22. Rxd5 {[%clk 01:30:13]} {[%emt 00:00:06]} f5
{[%clk 01:05:21]} {[%emt 00:02:58]} 23. exf5 {[%clk 01:30:08]} {[%emt
00:00:35]} Rxf5 {[%clk 00:51:53]} {[%emt 00:13:58]} 24. Bd3 {[%clk 01:26:10]}
{[%emt 00:04:28]} Rh5 {[%clk 00:40:33]} {[%emt 00:11:50]} 25. Bf1 {[%clk
01:24:43]} {[%emt 00:01:57]} Rf5 {[%clk 00:38:51]} {[%emt 00:02:12]} 26. Bd3
{[%emt 00:01:36]} Rh5 {[%clk 00:37:57]} 27. Kh2 {[%clk 01:22:52]} {[%emt
00:02:39]} Ne6 {[%clk 00:35:27]} {[%emt 00:03:00]} 28. Bf1 {[%clk 01:22:04]}
{[%emt 00:01:17]} Nf4 {[%clk 00:34:49]} {[%emt 00:01:08]} 29. Rb5 {[%clk
01:21:19]} {[%emt 00:01:16]} Rf5 {[%clk 00:22:28]} {[%emt 00:12:50]} 30. Qxb6
{[%clk 01:18:56]} {[%emt 00:02:54]} Qh4 {[%clk 00:20:50]} {[%emt 00:02:08]} 31.
g3 {[%clk 01:13:28]} {[%emt 00:05:58]} Qg5 {[%clk 00:21:07]} {[%emt 00:00:13]}
32. Qf2 {[%clk 01:06:06]} {[%emt 00:07:52]} Ne6 {[%clk 00:20:13]} {[%emt
00:01:24]} 33. Bd3 {[%clk 01:05:33]} {[%emt 00:01:03]} Rf6 {[%clk 00:19:46]}
{[%emt 00:00:57]} 34. Be4 {[%clk 01:05:46]} {[%emt 00:00:17]} Qh5 {[%clk
00:18:26]} {[%emt 00:01:51]} 35. Qg2 {[%clk 01:02:53]} {[%emt 00:03:22]} Ng5
{[%clk 00:18:06]} {[%emt 00:00:51]} 36. Rd2 {[%clk 01:01:26]} {[%emt 00:01:57]}
Rxf3 {[%clk 00:17:37]} {[%emt 00:00:58]} 37. Rxe5 {[%clk 00:56:56]} {[%emt
00:05:00]} dxe5 {[%clk 00:16:18]} {[%emt 00:01:49]} 38. Rxd8 {[%clk 00:57:04]}
{[%emt 00:00:22]} Re3 {[%clk 00:16:06]} {[%emt 00:00:41]} 39. Qf1 {[%clk
00:53:52]} {[%emt 00:03:43]} Re2+ {[%clk 00:11:59]} {[%emt 00:04:37]} 40. Kh1
{[%clk 00:54:10]} {[%emt 00:00:11]} Qxh3+ {[%clk 00:11:59]} {[%emt 00:00:31]}
41. Qxh3 {[%clk 00:54:27]} {[%emt 00:00:13]} Nxh3 {[%clk 00:12:23]} {[%emt
00:00:05]} 42. Bg2 {[%clk 00:53:11]} {[%emt 00:01:46]} Nf2+ {[%clk 00:11:53]}
{[%emt 00:01:00]} 43. Kg1 {[%clk 00:53:19]} {[%emt 00:00:22]} e4 {[%clk
00:11:26]} {[%emt 00:00:58]} 44. c5 {[%clk 00:44:43]} {[%emt 00:09:07]} e3
{[%clk 00:06:32]} {[%emt 00:05:22]} 45. Kf1 {[%clk 00:39:59]} {[%emt 00:05:14]}
Rc2 {[%clk 00:05:02]} {[%emt 00:02:01]} 46. c6 {[%clk 00:39:12]} {[%emt
00:01:16]} Ng4 {[%clk 00:03:26]} {[%emt 00:02:07]} 47. Be4 {[%clk 00:35:10]}
{[%emt 00:04:32]} Rc3 {[%clk 00:29:45]} {[%emt 00:04:11]} 48. Rd7+ {[%clk
01:00:19]} {[%emt 00:05:21]} Kf6 {[%clk 00:29:33]} {[%emt 00:00:43]} 49. c7
{[%clk 01:00:21]} {[%emt 00:00:27]} Ke6 {[%clk 00:24:46]} {[%emt 00:05:17]} 50.
Rxh7 {[%clk 00:58:22]} {[%emt 00:02:29]} Nf6 {[%clk 00:24:46]} {[%emt
00:00:30]} 51. Rh4 {[%clk 00:58:18]} {[%emt 00:00:34]} g5 {[%clk 00:24:08]}
{[%emt 00:01:08]} 52. Bf5+ {[%clk 00:58:14]} {[%emt 00:00:34]} Kd6 {[%clk
00:22:48]} {[%emt 00:01:50]} 53. Rh6 {[%clk 00:58:05]} {[%emt 00:00:39]} Kxc7
{[%clk 00:22:15]} {[%emt 00:01:04]} 54. Rxf6 {[%clk 00:58:28]} {[%emt
00:00:06]} e2+ {[%clk 00:22:44]} {[%emt 00:00:02]} 55. Kxe2 {[%clk 00:58:48]}
{[%emt 00:00:09]} Rxg3 {[%clk 00:23:11]} {[%emt 00:00:02]} 56. Kf2 {[%clk
00:55:52]} {[%emt 00:03:27]} Rc3 {[%clk 00:23:35]} {[%emt 00:00:06]} 57. Ra6
{[%clk 00:55:58]} {[%emt 00:00:23]} Rc5 {[%clk 00:24:00]} {[%emt 00:00:06]} 58.
Be4 {[%clk 00:55:59]} {[%emt 00:00:29]} Re5 {[%clk 00:24:05]} {[%emt 00:00:26]}
59. Ke3 {[%clk 00:56:17]} {[%emt 00:00:11]} Rb5 {[%clk 00:24:17]} {[%emt
00:00:19]} 60. Bd3 {[%clk 00:55:28]} {[%emt 00:01:18]} Re5+ {[%clk 00:24:14]}
{[%emt 00:00:33]} 61. Kd4 {[%clk 00:55:36]} {[%emt 00:00:21]} Re8 {[%clk
00:24:16]} {[%emt 00:00:29]} 62. Rxa5 {[%clk 00:55:24]} {[%emt 00:00:42]} Rg8
{[%clk 00:24:42]} {[%emt 00:00:04]} 63. Ra7+ {[%clk 00:55:01]} {[%emt
00:00:53]} Kb6 {[%clk 00:25:00]} {[%emt 00:00:12]} 64. Ra6+ {[%clk 00:55:22]}
{[%emt 00:00:09]} Kb7 {[%clk 00:25:25]} {[%emt 00:00:05]} 65. Rg6 {[%clk
00:55:42]} {[%emt 00:00:09]} Rd8+ {[%clk 00:25:28]} {[%emt 00:00:28]} 66. Kc3
{[%clk 00:56:03]} {[%emt 00:00:08]} Rc8+ {[%clk 00:25:42]} {[%emt 00:00:17]} 67.
Kb4 {[%clk 00:56:04]} {[%emt 00:00:29]} Rd8 {[%clk 00:26:06]} {[%emt 00:00:05]}
68. Be4+ {[%clk 00:55:57]} {[%emt 00:00:38]} Ka7 {[%clk 00:26:32]} {[%emt
00:00:04]} 69. Kc5 {[%clk 00:56:02]} {[%emt 00:00:24]} g4 {[%clk 00:26:57]}
{[%emt 00:00:06]} 70. Rg7+ {[%clk 00:55:47]} {[%emt 00:00:45]} Ka6 {[%clk
00:27:21]} {[%emt 00:00:05]} 71. Rxg4 {[%clk 00:56:09]} {[%emt 00:00:10]} Rd7
{[%clk 00:27:36]} {[%emt 00:00:15]} 72. Bc6 {[%clk 00:56:23]} {[%emt 00:00:16]}
1-0

[Event "Masters Tournament (MTO)"]
[Site "Biel, Switzerland"]
[Date "2026.07.23"]
[Round "10.18"]
[White "Kunz, Andre"]
[Black "Hasenohr, Benedict"]
[Result "0-1"]
[TimeControl "100+30+30sec/move"]
[WhiteTitle "-"]
[BlackTitle "-"]
[WhiteFideId "24623652"]
[BlackFideId "1303309"]
[WhiteElo "2116"]
[BlackElo "2247"]

1. e4 {[%clk 01:40:57]} {[%emt 05:40:07]} e6 {[%clk 01:40:57]} {[%emt
00:00:04]} 2. d4 {[%clk 01:41:19]} {[%emt 00:00:10]} d5 {[%clk 01:41:22]}
{[%emt 00:00:03]} 3. Nc3 {[%clk 01:41:34]} {[%emt 00:00:14]} Nf6 {[%clk
01:39:58]} {[%emt 00:01:55]} 4. Bg5 {[%clk 01:41:08]} {[%emt 00:00:55]} dxe4
{[%clk 01:39:50]} {[%emt 00:00:38]} 5. Nxe4 {[%clk 01:38:20]} {[%emt 00:03:19]}
Nbd7 {[%clk 01:37:34]} {[%emt 00:02:46]} 6. Nf3 {[%clk 01:36:34]} {[%emt
00:02:14]} h6 {[%clk 01:37:57]} {[%emt 00:00:08]} 7. Bxf6 {[%clk 01:32:48]}
{[%emt 00:04:16]} Nxf6 {[%clk 01:38:19]} {[%emt 00:00:08]} 8. Qd3 {[%clk
01:29:27]} {[%emt 00:03:51]} Be7 {[%clk 01:36:18]} {[%emt 00:02:31]} 9. O-O-O
{[%clk 01:28:54]} {[%emt 00:01:02]} Nxe4 {[%clk 01:32:20]} {[%emt 00:04:30]} 10.
Qxe4 {[%clk 01:29:23]} {[%emt 00:00:01]} Qd5 {[%clk 01:32:40]} {[%emt
00:00:10]} 11. Bd3 {[%clk 01:22:02]} {[%emt 00:07:50]} Qxa2 {[%clk 01:31:28]}
{[%emt 00:01:42]} 12. Bb5+ {[%clk 01:14:22]} {[%emt 00:08:10]} c6 {[%clk
01:31:51]} {[%emt 00:00:08]} 13. Bxc6+ {[%clk 01:11:59]} {[%emt 00:02:54]} Kf8
{[%clk 01:32:16]} {[%emt 00:00:03]} 14. Bxb7 {[%clk 01:07:43]} {[%emt
00:04:46]} Rb8 {[%clk 01:32:25]} {[%emt 00:00:22]} 15. Bxc8 {[%clk 01:06:37]}
{[%emt 00:01:35]} Qxb2+ {[%clk 01:32:23]} {[%emt 00:00:33]} 16. Kd2 {[%clk
01:06:57]} {[%emt 00:00:10]} Rxc8 {[%clk 01:30:12]} {[%emt 00:02:41]} 17. Rc1
{[%clk 00:53:49]} {[%emt 00:13:37]} Bb4+ {[%clk 01:05:05]} {[%emt 00:25:37]} 18.
Ke2 {[%clk 00:52:54]} {[%emt 00:01:25]} f5 {[%clk 00:56:03]} {[%emt 00:09:33]}
19. Qb7 {[%clk 00:31:23]} {[%emt 00:22:01]} Rxc2+ {[%clk 00:55:54]} {[%emt
00:00:38]} 20. Rxc2 {[%clk 00:31:46]} {[%emt 00:00:07]} Qxc2+ {[%clk 00:56:20]}
{[%emt 00:00:05]} 21. Ke3 {[%clk 00:31:23]} {[%emt 00:00:53]} Qb3+ {[%clk
00:52:46]} {[%emt 00:04:03]} 22. Ke2 {[%clk 00:30:01]} {[%emt 00:01:52]} Kg8
{[%clk 00:52:13]} {[%emt 00:01:03]} 23. Rd1 {[%clk 00:25:08]} {[%emt 00:05:24]}
Kh7 {[%clk 00:49:55]} {[%emt 00:02:47]} 24. Qxa7 {[%clk 00:17:53]} {[%emt
00:07:45]} Rc8 {[%clk 00:49:28]} {[%emt 00:00:57]} 25. Qa1 {[%clk 00:16:40]}
{[%emt 00:01:44]} Qc4+ {[%clk 00:32:28]} {[%emt 00:17:29]} 26. Rd3 {[%clk
00:17:03]} {[%emt 00:00:07]} Qc2+ {[%clk 00:32:33]} {[%emt 00:00:25]} 27. Nd2
{[%clk 00:15:36]} {[%emt 00:01:57]} Bxd2 {[%clk 00:32:58]} {[%emt 00:00:06]} 28.
Rxd2 {[%clk 00:15:37]} {[%emt 00:00:29]} Qe4+ {[%clk 00:33:23]} {[%emt
00:00:05]} 29. Kf1 {[%clk 00:14:06]} {[%emt 00:02:00]} Qf4 {[%clk 00:30:35]}
{[%emt 00:03:18]} 30. Qd1 {[%clk 00:09:41]} {[%emt 00:04:54]} Qxh2 {[%clk
00:30:42]} {[%emt 00:00:24]} 31. f3 {[%clk 00:10:03]} {[%emt 00:00:08]} Rc1
{[%clk 00:30:51]} {[%emt 00:00:21]} 0-1

[Event "Masters Tournament (MTO)"]
[Site "Biel, Switzerland"]
[Date "2026.07.23"]
[Round "10.19"]
[White "Stefan, Iulia-Cristiana"]
[Black "Cervelli, Eduard"]
[Result "1/2-1/2"]
[TimeControl "100+30+30sec/move"]
[WhiteTitle "-"]
[BlackTitle "-"]
[WhiteFideId "1273876"]
[BlackFideId "1351800"]
[WhiteElo "2053"]
[BlackElo "2197"]

1. d4 {[%clk 01:40:58]} {[%emt 00:07:32]} Nf6 {[%clk 01:40:52]} {[%emt
00:00:08]} 2. Nf3 {[%clk 01:41:24]} {[%emt 00:00:07]} g6 {[%clk 01:41:06]}
{[%emt 00:00:14]} 3. c4 {[%clk 01:41:50]} {[%emt 00:00:03]} Bg7 {[%clk
01:41:25]} {[%emt 00:00:11]} 4. g3 {[%clk 01:42:16]} {[%emt 00:00:05]} O-O
{[%clk 01:41:44]} {[%emt 00:00:09]} 5. Bg2 {[%clk 01:42:44]} {[%emt 00:00:03]}
d6 {[%clk 01:42:06]} {[%emt 00:00:08]} 6. Nc3 {[%clk 01:43:10]} {[%emt
00:00:04]} Nbd7 {[%clk 01:41:30]} {[%emt 00:01:05]} 7. O-O {[%clk 01:43:27]}
{[%emt 00:00:14]} e5 {[%clk 01:41:45]} {[%emt 00:00:15]} 8. e4 {[%clk
01:43:51]} {[%emt 00:00:06]} exd4 {[%clk 01:42:03]} {[%emt 00:00:12]} 9. Nxd4
{[%clk 01:44:15]} {[%emt 00:00:06]} Re8 {[%clk 01:42:05]} {[%emt 00:00:28]} 10.
Be3 {[%clk 01:44:30]} {[%emt 00:00:16]} Nc5 {[%clk 01:39:24]} {[%emt 00:03:10]}
11. f3 {[%clk 01:44:42]} {[%emt 00:00:18]} c6 {[%clk 01:21:33]} {[%emt
00:18:20]} 12. Qc2 {[%clk 01:40:55]} {[%emt 00:04:17]} a5 {[%clk 01:16:23]}
{[%emt 00:05:41]} 13. Bf2 {[%clk 01:37:54]} {[%emt 00:03:31]} h5 {[%clk
01:12:38]} {[%emt 00:04:15]} 14. Rad1 {[%clk 01:34:27]} {[%emt 00:03:57]} Qe7
{[%clk 01:12:23]} {[%emt 00:00:44]} 15. h3 {[%clk 01:30:34]} {[%emt 00:04:24]}
Ne6 {[%clk 01:00:51]} {[%emt 00:12:02]} 16. Nde2 {[%clk 01:16:27]} {[%emt
00:14:37]} Bh6 {[%clk 00:51:38]} {[%emt 00:09:43]} 17. Qd3 {[%clk 01:10:23]}
{[%emt 00:06:35]} Rd8 {[%clk 00:46:17]} {[%emt 00:05:51]} 18. f4 {[%clk
01:05:48]} {[%emt 00:05:04]} Rd7 {[%clk 00:35:34]} {[%emt 00:11:13]} 19. Qf3
{[%clk 00:48:29]} {[%emt 00:17:49]} Bg7 {[%clk 00:26:14]} {[%emt 00:09:50]} 20.
Na4 {[%clk 00:46:02]} {[%emt 00:02:58]} Ra6 {[%clk 00:24:08]} {[%emt 00:02:35]}
21. Nb6 {[%clk 00:40:18]} {[%emt 00:06:14]} Rd8 {[%clk 00:24:27]} {[%emt
00:00:11]} 22. Qd3 {[%clk 00:39:35]} {[%emt 00:01:13]} c5 {[%clk 00:18:42]}
{[%emt 00:06:15]} 23. Nxc8 {[%clk 00:35:49]} {[%emt 00:04:16]} Rxc8 {[%clk
00:19:10]} {[%emt 00:00:02]} 24. f5 {[%clk 00:30:10]} {[%emt 00:06:09]} Nf8
{[%clk 00:18:04]} {[%emt 00:01:35]} 25. Nc3 {[%clk 00:27:54]} {[%emt 00:02:48]}
g5 {[%clk 00:11:59]} {[%emt 00:06:34]} 26. Nb5 {[%clk 00:26:26]} {[%emt
00:01:58]} Ne8 {[%clk 00:08:52]} {[%emt 00:03:37]} 27. Qe2 {[%clk 00:26:07]}
{[%emt 00:00:49]} Nf6 {[%clk 00:07:46]} {[%emt 00:01:35]} 28. Qd2 {[%clk
00:20:49]} {[%emt 00:05:49]} Ne8 {[%clk 00:07:24]} {[%emt 00:00:52]} 29. Be3
{[%clk 00:13:13]} {[%emt 00:08:06]} Nh7 {[%clk 00:07:15]} {[%emt 00:00:39]} 30.
Qe2 {[%clk 00:11:37]} {[%emt 00:02:07]} 1/2-1/2